fUST/lending_fUST_20260503
["ID","MTS","AMOUNT","RATE_DAILY","PERIOD"]
[421517608,1777809039000,-300.0,0.00013832,2]
[421517610,1777809039000,-300.0,0.00013832,2]
[421517612,1777809039000,-300.0,0.00013832,2]
[421517609,1777809039000,-300.0,0.00013832,2]
[421517618,1777809039000,-300.0,0.00013832,2]
[421517619,1777809039000,-300.0,0.00013832,2]
[421517620,1777809039000,-500.0,0.00014,2]
[421517611,1777809039000,-300.0,0.00013832,2]
[421517615,1777809039000,-300.0,0.00013832,2]
[421517614,1777809039000,-300.0,0.00013832,2]
[421517613,1777809039000,-300.0,0.00013832,2]
[421517616,1777809039000,-300.0,0.00013832,2]
[421517617,1777809039000,-300.0,0.00013832,2]
[421517622,1777809039000,-600.0,0.00014108,2]
[421517621,1777809039000,-392.32822175,0.00014081,2]
[421517631,1777809039000,-2150.738,0.00015574,2]
[421517623,1777809039000,-15000.0,0.00014737,2]
[421517630,1777809039000,-500.0,0.00015571,2]
[421517626,1777809039000,-326.526613,0.00015068,2]
[421517625,1777809039000,-715.0,0.00015065,2]
[421517652,1777809039000,-500.0,0.00015581,2]
[421517706,1777809039000,-500.0,0.00015581,2]
[421517660,1777809039000,-500.0,0.00015581,2]
[421517687,1777809039000,-557.96320772,0.00015581,2]
[421517694,1777809039000,-500.0,0.00015581,2]
[421517689,1777809039000,-434.08136701,0.00015581,2]
[421517693,1777809039000,-500.0,0.00015581,2]
[421517692,1777809039000,-500.0,0.00015581,2]
[421517690,1777809039000,-500.0,0.00015581,2]
[421517695,1777809039000,-500.0,0.00015581,2]
[421517697,1777809039000,-500.0,0.00015581,2]
[421517696,1777809039000,-500.0,0.00015581,2]
[421517686,1777809039000,-500.0,0.00015581,2]
[421517699,1777809039000,-500.0,0.00015581,2]
[421517688,1777809039000,-500.0,0.00015581,2]
[421517698,1777809039000,-471.60630856,0.00015581,2]
[421517705,1777809039000,-500.0,0.00015581,2]
[421517704,1777809039000,-500.0,0.00015581,2]
[421517700,1777809039000,-500.0,0.00015581,2]
[421517702,1777809039000,-500.0,0.00015581,2]
[421517712,1777809039000,-358.52676466,0.00015582,2]
[421517703,1777809039000,-500.0,0.00015581,2]
[421517707,1777809039000,-500.0,0.00015581,2]
[421517708,1777809039000,-500.0,0.00015581,2]
[421517710,1777809039000,-216385.15108887,0.00015582,2]
[421517711,1777809039000,-23299.9999989,0.00015582,2]
[421517655,1777809039000,-500.0,0.00015581,2]
[421517701,1777809039000,-500.0,0.00015581,2]
[421517691,1777809039000,-500.0,0.00015581,2]
[421517709,1777809039000,-523982.43534351,0.00015582,2]
[421517681,1777809039000,-500.0,0.00015581,2]
[421517658,1777809039000,-500.0,0.00015581,2]
[421517661,1777809039000,-500.0,0.00015581,2]
[421517666,1777809039000,-500.0,0.00015581,2]
[421517665,1777809039000,-500.0,0.00015581,2]
[421517659,1777809039000,-500.0,0.00015581,2]
[421517664,1777809039000,-500.0,0.00015581,2]
[421517667,1777809039000,-419.01811246,0.00015581,2]
[421517670,1777809039000,-500.0,0.00015581,2]
[421517668,1777809039000,-513.05949585,0.00015581,2]
[421517669,1777809039000,-500.0,0.00015581,2]
[421517672,1777809039000,-500.0,0.00015581,2]
[421517663,1777809039000,-500.0,0.00015581,2]
[421517662,1777809039000,-500.0,0.00015581,2]
[421517671,1777809039000,-500.0,0.00015581,2]
[421517674,1777809039000,-500.0,0.00015581,2]
[421517679,1777809039000,-500.0,0.00015581,2]
[421517673,1777809039000,-503.18362988,0.00015581,2]
[421517676,1777809039000,-500.0,0.00015581,2]
[421517677,1777809039000,-500.0,0.00015581,2]
[421517678,1777809039000,-158.90952738,0.00015581,2]
[421517675,1777809039000,-500.0,0.00015581,2]
[421517680,1777809039000,-500.0,0.00015581,2]
[421517682,1777809039000,-500.0,0.00015581,2]
[421517683,1777809039000,-500.0,0.00015581,2]
[421517684,1777809039000,-500.0,0.00015581,2]
[421517685,1777809039000,-500.0,0.00015581,2]
[421517714,1777809040000,-7503.63847078,0.00015582,2]
[421517713,1777809040000,-38861.19108255,0.00015582,2]
[421517730,1777809041000,-15743.6,0.00015582,2]
[421517729,1777809041000,-4182.12112569,0.00015582,2]
[421517756,1777809044000,-18.6403376,0.00015582,2]
[421517757,1777809044000,-325.8460697,0.00015582,2]
[421517754,1777809044000,-185.0,0.00015571,2]
[421517755,1777809044000,-185.0,0.00015571,2]
[421517774,1777809047000,-907.88036448,0.00015582,2]
[421517775,1777809047000,-135353.07587543,0.00015582,2]
[421517773,1777809047000,-569.37999998,0.00015582,2]
[421517772,1777809047000,-4118.62531495,0.00015582,2]
[421517770,1777809047000,-4852.4258661,0.00015426,2]
[421517771,1777809047000,-147.5741339,0.00015426,2]
[421517779,1777809174000,5000.0,0.00021918,120]
[421517782,1777809305000,181.0,0.00021176,120]
[421517783,1777809319000,8184.95948603,0.0002191,120]
[421517786,1777809792000,888.0,0.00021917,120]
[421517795,1777809809000,-269.56640304,0.00013365,14]
[421517794,1777809809000,-263.34802431,0.00013115,2]
[421517791,1777809809000,-418.38646871,0.00012969,2]
[421517792,1777809809000,-330.06495529,0.00012969,2]
[421517793,1777809809000,-273.93504471,0.00012969,2]
[421517790,1777809809000,-1000.0,0.00012969,2]
[421517789,1777809809000,-263.34802431,0.00012969,2]
[421517788,1777809809000,-320.0,0.00012969,2]
[421517787,1777809809000,-300.0,0.00012969,2]
[421517796,1777809810000,-160.0,0.00013699,2]
[421517797,1777809810000,-160.0,0.00013699,2]
[421517799,1777809810000,-323.14981643,0.00013699,2]
[421517798,1777809810000,-676.85018357,0.00013699,2]
[421517800,1777809810000,-676.85018357,0.0001371,2]
[421517801,1777809833000,222.0,0.00021917,120]
[421517809,1777810021000,269.56640304,0.00013365,14]
[421517819,1777810231000,-575.0,0.00013397,2]
[421517818,1777810231000,-5000.0,0.00013397,2]
[421517820,1777810231000,-258.08106382,0.00013532,2]
[421517821,1777810231000,-748.451424,0.00013699,2]
[421517826,1777810231000,-828.82109096,0.00014965,2]
[421517825,1777810231000,-151.0,0.00014795,2]
[421517823,1777810231000,-323.14981643,0.0001371,2]
[421517822,1777810231000,-1000.0,0.00013699,2]
[421517824,1777810231000,-160.0,0.0001388,2]
[421517827,1777810231000,-1200.0,0.00015062,2]
[421517831,1777810231000,-300.0,0.00015063,2]
[421517833,1777810231000,-55.59660479,0.00015065,2]
[421517830,1777810231000,-300.0,0.00015063,2]
[421517829,1777810231000,-300.0,0.00015063,2]
[421517828,1777810231000,-300.0,0.00015063,2]
[421517832,1777810231000,-300.0,0.00015063,2]
[421517846,1777810237000,-2661.03474293,0.00013263,2]
[421517894,1777810238000,-500.0,0.00015113,2]
[421517886,1777810238000,-212.64104934,0.00015113,2]
[421517883,1777810238000,-500.0,0.00015113,2]
[421517884,1777810238000,-500.0,0.00015113,2]
[421517874,1777810238000,-500.0,0.00015113,2]
[421517881,1777810238000,-545.8383233,0.00015113,2]
[421517878,1777810238000,-500.0,0.00015113,2]
[421517875,1777810238000,-500.0,0.00015113,2]
[421517876,1777810238000,-500.0,0.00015113,2]
[421517892,1777810238000,-500.0,0.00015113,2]
[421517880,1777810238000,-500.0,0.00015113,2]
[421517891,1777810238000,-500.0,0.00015113,2]
[421517900,1777810238000,-500.0,0.00015113,2]
[421517895,1777810238000,-500.0,0.00015113,2]
[421517887,1777810238000,-500.0,0.00015113,2]
[421517889,1777810238000,-500.0,0.00015113,2]
[421517890,1777810238000,-500.0,0.00015113,2]
[421517888,1777810238000,-500.0,0.00015113,2]
[421517893,1777810238000,-500.0,0.00015113,2]
[421517906,1777810238000,-500.0,0.00015113,2]
[421517898,1777810238000,-500.0,0.00015113,2]
[421517877,1777810238000,-500.0,0.00015113,2]
[421517902,1777810238000,-500.0,0.00015113,2]
[421517907,1777810238000,-500.0,0.00015113,2]
[421517897,1777810238000,-500.0,0.00015113,2]
[421517908,1777810238000,-500.0,0.00015113,2]
[421517885,1777810238000,-500.0,0.00015113,2]
[421517879,1777810238000,-500.0,0.00015113,2]
[421517861,1777810238000,-500.0,0.00015113,2]
[421517871,1777810238000,-500.0,0.00015113,2]
[421517896,1777810238000,-500.0,0.00015113,2]
[421517847,1777810238000,-300.0,0.00013664,2]
[421517857,1777810238000,-49944.40339521,0.00015065,2]
[421517848,1777810238000,-300.0,0.00013664,2]
[421517849,1777810238000,-300.0,0.00013664,2]
[421517850,1777810238000,-300.0,0.00013664,2]
[421517852,1777810238000,-300.0,0.00013664,2]
[421517851,1777810238000,-300.0,0.00013664,2]
[421517853,1777810238000,-300.0,0.00013664,2]
[421517854,1777810238000,-300.0,0.00013664,2]
[421517856,1777810238000,-300.0,0.00013664,2]
[421517855,1777810238000,-300.0,0.00013664,2]
[421517873,1777810238000,-500.0,0.00015113,2]
[421517858,1777810238000,-888.0,0.00015066,2]
[421517869,1777810238000,-500.0,0.00015113,2]
[421517867,1777810238000,-500.0,0.00015113,2]
[421517868,1777810238000,-315.46288797,0.00015113,2]
[421517860,1777810238000,-500.0,0.00015113,2]
[421517862,1777810238000,-500.0,0.00015113,2]
[421517865,1777810238000,-462.73978591,0.00015113,2]
[421517863,1777810238000,-500.0,0.00015113,2]
[421517870,1777810238000,-500.0,0.00015113,2]
[421517864,1777810238000,-500.0,0.00015113,2]
[421517866,1777810238000,-500.0,0.00015113,2]
[421517872,1777810238000,-500.0,0.00015113,2]
[421517882,1777810238000,-500.0,0.00015113,2]
[421517859,1777810238000,-338.276668,0.00015068,2]
[421517901,1777810238000,-500.0,0.00015113,2]
[421517928,1777810238000,-500.0,0.00015399,2]
[421517905,1777810238000,-500.0,0.00015113,2]
[421517939,1777810238000,-500.0,0.00015399,2]
[421517940,1777810238000,-500.0,0.00015399,2]
[421517946,1777810238000,-828.82109096,0.00015474,2]
[421517938,1777810238000,-500.0,0.00015399,2]
[421517941,1777810238000,-293.54499772,0.00015399,2]
[421517942,1777810238000,-595.21863462,0.00015399,2]
[421517944,1777810238000,-13384.4836571,0.00015456,2]
[421517945,1777810238000,-1029.7102958,0.00015456,2]
[421517943,1777810238000,-402.364458,0.00015456,2]
[421517959,1777810238000,-828.82109096,0.00015984,2]
[421517947,1777810238000,-2150.738,0.0001548,2]
[421517948,1777810238000,-20614.969968,0.000155,2]
[421517937,1777810238000,-500.0,0.00015399,2]
[421517952,1777810238000,-500.0,0.00015582,2]
[421517949,1777810238000,-5011.45294435,0.000155,2]
[421517951,1777810238000,-150.08,0.00015571,2]
[421517953,1777810238000,-1964.76335552,0.00015616,2]
[421517954,1777810238000,-1181.75746101,0.00015619,2]
[421517950,1777810238000,-304.53565531,0.00015532,2]
[421517956,1777810238000,-822.0,0.00015864,2]
[421517957,1777810238000,-151.0,0.000159,2]
[421517955,1777810238000,-500.0,0.00015662,2]
[421517962,1777810238000,-16787.4610381,0.00016,2]
[421517961,1777810238000,-42705.95444436,0.00016,2]
[421517963,1777810238000,-647.81,0.00016,2]
[421517960,1777810238000,-160.519,0.00015999,2]
[421517904,1777810238000,-500.0,0.00015113,2]
[421517935,1777810238000,-500.0,0.00015399,2]
[421517958,1777810238000,-500.0,0.00015936,2]
[421517929,1777810238000,-500.0,0.00015399,2]
[421517899,1777810238000,-500.0,0.00015113,2]
[421517903,1777810238000,-500.0,0.00015113,2]
[421517909,1777810238000,-500.0,0.00015113,2]
[421517911,1777810238000,-272.646483,0.00015115,2]
[421517912,1777810238000,-200.0,0.00015161,2]
[421517910,1777810238000,-500.0,0.00015114,2]
[421517913,1777810238000,-500.0,0.00015388,2]
[421517914,1777810238000,-500.0,0.00015399,2]
[421517917,1777810238000,-500.0,0.00015399,2]
[421517920,1777810238000,-154.66981769,0.00015399,2]
[421517918,1777810238000,-500.0,0.00015399,2]
[421517921,1777810238000,-500.0,0.00015399,2]
[421517915,1777810238000,-500.0,0.00015399,2]
[421517916,1777810238000,-500.0,0.00015399,2]
[421517923,1777810238000,-500.0,0.00015399,2]
[421517934,1777810238000,-500.0,0.00015399,2]
[421517922,1777810238000,-500.0,0.00015399,2]
[421517933,1777810238000,-500.0,0.00015399,2]
[421517924,1777810238000,-500.0,0.00015399,2]
[421517925,1777810238000,-500.0,0.00015399,2]
[421517927,1777810238000,-500.0,0.00015399,2]
[421517932,1777810238000,-500.0,0.00015399,2]
[421517931,1777810238000,-500.0,0.00015399,2]
[421517926,1777810238000,-500.0,0.00015399,2]
[421517930,1777810238000,-500.0,0.00015399,2]
[421517964,1777810238000,-1224.85871026,0.00016,2]
[421517919,1777810238000,-500.0,0.00015399,2]
[421517936,1777810238000,-500.0,0.00015399,2]
[421518112,1777810243000,-300.0,0.00013664,2]
[421518114,1777810243000,-300.0,0.00013664,2]
[421518116,1777810243000,-300.0,0.00013664,2]
[421518110,1777810243000,-300.0,0.00013664,2]
[421518108,1777810243000,-300.0,0.00013664,2]
[421518118,1777810243000,-1409.02497802,0.00016,2]
[421518188,1777810246000,-25890.06642634,0.00016,2]
[421518186,1777810246000,-11724.4152003,0.00016,2]
[421518178,1777810246000,-11116.04166623,0.00016,2]
[421518211,1777810843000,266.02816783,0.00012969,2]
[421518212,1777810851000,2639.70632519,0.00012969,2]
[421518325,1777811438000,-300.0,0.00013557,2]
[421518323,1777811438000,-741.0,0.00012582,2]
[421518329,1777811438000,-300.0,0.00013557,2]
[421518333,1777811438000,-300.0,0.00013557,2]
[421518335,1777811438000,-300.0,0.00013557,2]
[421518324,1777811438000,-217.6744285,0.00013126,2]
[421518334,1777811438000,-300.0,0.00013557,2]
[421518332,1777811438000,-300.0,0.00013557,2]
[421518317,1777811438000,-300.0,0.00012506,2]
[421518320,1777811438000,-300.0,0.00012581,2]
[421518322,1777811438000,-300.0,0.00012581,2]
[421518319,1777811438000,-300.0,0.00012581,2]
[421518318,1777811438000,-300.0,0.00012581,2]
[421518316,1777811438000,-1200.0,0.00012455,2]
[421518315,1777811438000,-3647.34218136,0.00012331,2]
[421518314,1777811438000,-1042.37256033,0.00012331,2]
[421518312,1777811438000,-310.28525831,0.00012331,2]
[421518308,1777811438000,-2360.29367481,0.00012207,2]
[421518310,1777811438000,-272.01461911,0.0001233,2]
[421518321,1777811438000,-300.0,0.00012581,2]
[421518326,1777811438000,-300.0,0.00013557,2]
[421518328,1777811438000,-300.0,0.00013557,2]
[421518336,1777811438000,-300.0,0.00013557,2]
[421518327,1777811438000,-300.0,0.00013557,2]
[421518354,1777811438000,-133.37185482,0.00014717,2]
[421518352,1777811438000,-518.01318185,0.00014303,2]
[421518353,1777811438000,-320.97725055,0.0001433,2]
[421518351,1777811438000,-300.0,0.00013839,2]
[421518347,1777811438000,-393.0,0.00013803,2]
[421518343,1777811438000,-1000.0,0.00013699,2]
[421518345,1777811438000,-1680.0,0.000137,2]
[421518338,1777811438000,-300.0,0.00013557,2]
[421518348,1777811438000,-420.0,0.00013803,2]
[421518346,1777811438000,-420.0,0.00013803,2]
[421518344,1777811438000,-1000.0,0.00013699,2]
[421518349,1777811438000,-420.0,0.00013803,2]
[421518330,1777811438000,-300.0,0.00013557,2]
[421518337,1777811438000,-300.0,0.00013557,2]
[421518341,1777811438000,-518.01318185,0.00013599,2]
[421518331,1777811438000,-300.0,0.00013557,2]
[421518340,1777811438000,-1009.7965829,0.00013562,6]
[421518342,1777811438000,-15000.0,0.00013693,2]
[421518350,1777811438000,-600.0,0.00013827,2]
[421518339,1777811438000,-300.0,0.00013557,2]
[421518361,1777811440000,-459.34763194,0.00013699,2]
[421518474,1777811446000,-408.26887239,0.00014717,2]
[421518456,1777811446000,3812.5,0.0001,2]
[421518457,1777811446000,-234.13669598,0.00013563,2]
[421518459,1777811446000,-21.78574006,0.00013699,2]
[421518460,1777811446000,-366.62814518,0.00014717,2]
[421518458,1777811446000,-244.0,0.00013563,2]
[421518461,1777811446000,-500.0,0.00014717,2]
[421518462,1777811446000,-416.65304423,0.00014717,2]
[421518464,1777811446000,-500.0,0.00014717,2]
[421518475,1777811446000,-500.0,0.00014717,2]
[421518472,1777811446000,-500.0,0.00014717,2]
[421518465,1777811446000,-500.0,0.00014717,2]
[421518466,1777811446000,-500.0,0.00014717,2]
[421518473,1777811446000,-500.0,0.00014717,2]
[421518468,1777811446000,-500.0,0.00014717,2]
[421518469,1777811446000,-500.0,0.00014717,2]
[421518467,1777811446000,-500.0,0.00014717,2]
[421518471,1777811446000,-500.0,0.00014717,2]
[421518470,1777811446000,-500.0,0.00014717,2]
[421518463,1777811446000,-500.0,0.00014717,2]
[421518476,1777811446000,-500.0,0.00014717,2]
[421518482,1777811447000,-310.79520762,0.00014717,2]
[421518485,1777811447000,-500.0,0.00014717,2]
[421518486,1777811447000,-500.0,0.00014717,2]
[421518480,1777811447000,-500.0,0.00014717,2]
[421518477,1777811447000,-500.0,0.00014717,2]
[421518479,1777811447000,-500.0,0.00014717,2]
[421518483,1777811447000,-500.0,0.00014717,2]
[421518478,1777811447000,-500.0,0.00014717,2]
[421518481,1777811447000,-318.79840182,0.00014717,2]
[421518487,1777811447000,-482.32361583,0.00014717,2]
[421518484,1777811447000,-500.0,0.00014717,2]
[421518493,1777811447000,-500.0,0.00014717,2]
[421518499,1777811447000,-286.66937445,0.00014717,2]
[421518489,1777811447000,-500.0,0.00014717,2]
[421518491,1777811447000,-400.09775004,0.00014717,2]
[421518492,1777811447000,-500.0,0.00014717,2]
[421518496,1777811447000,-500.0,0.00014717,2]
[421518490,1777811447000,-621.37392514,0.00014717,2]
[421518498,1777811447000,-190.41982642,0.00014717,2]
[421518495,1777811447000,-500.0,0.00014717,2]
[421518494,1777811447000,-500.0,0.00014717,2]
[421518497,1777811447000,-500.0,0.00014717,2]
[421518488,1777811447000,-500.0,0.00014717,2]
[421518509,1777811490000,-581.32117959,0.00013293,2]
[421518510,1777811509000,-3812.5,0.0001316,2]
[421518518,1777812260000,8248.23160125,0.0002191,120]
[421518591,1777812632000,-4479.41986521,0.00010899,2]
[421518589,1777812632000,-520.58013479,0.00010899,2]
[421518593,1777812632000,-520.58013479,0.00011009,2]
[421518644,1777812638000,-300.0,0.00013695,2]
[421518645,1777812638000,-300.0,0.00013695,2]
[421518635,1777812638000,-575.0,0.0001112,2]
[421518643,1777812638000,-300.0,0.00013695,2]
[421518642,1777812638000,-1679.0,0.00013454,2]
[421518641,1777812638000,-300.0,0.00013,2]
[421518640,1777812638000,-327.93681592,0.00012954,2]
[421518639,1777812638000,-300.0,0.00012621,2]
[421518638,1777812638000,-1680.0,0.00012231,2]
[421518629,1777812638000,-2497.6252578,0.00011009,2]
[421518634,1777812638000,-4711.44343881,0.0001112,2]
[421518636,1777812638000,-420.0,0.00012217,2]
[421518632,1777812638000,-300.0,0.00011119,2]
[421518633,1777812638000,-1200.0,0.00011119,2]
[421518630,1777812638000,-287.0,0.00011119,2]
[421518631,1777812638000,-300.0,0.00011119,2]
[421518627,1777812638000,-277.91255586,0.00010954,2]
[421518628,1777812638000,-1166.33673184,0.00011009,2]
[421518637,1777812638000,-225.0,0.00012217,2]
[421518647,1777812638000,-300.0,0.00013695,2]
[421518649,1777812638000,-300.0,0.00013695,2]
[421518651,1777812638000,-300.0,0.00013695,2]
[421518648,1777812638000,-300.0,0.00013695,2]
[421518667,1777812638000,-47507.69380843,0.00014517,2]
[421518665,1777812638000,-388.50988638,0.00014303,2]
[421518666,1777812638000,-159.34,0.00014516,2]
[421518660,1777812638000,-1000.0,0.00013699,2]
[421518664,1777812638000,-1207.0933743,0.00014091,2]
[421518663,1777812638000,-2573.8057437,0.00014091,2]
[421518658,1777812638000,-347.474348,0.00013699,2]
[421518662,1777812638000,-473.51438,0.00014,2]
[421518668,1777812638000,-1747.07341138,0.00014517,2]
[421518659,1777812638000,-1000.0,0.00013699,2]
[421518656,1777812638000,-300.0,0.00013695,2]
[421518657,1777812638000,-300.0,0.00013695,2]
[421518655,1777812638000,-300.0,0.00013695,2]
[421518654,1777812638000,-300.0,0.00013695,2]
[421518653,1777812638000,-300.0,0.00013695,2]
[421518652,1777812638000,-300.0,0.00013695,2]
[421518646,1777812638000,-300.0,0.00013695,2]
[421518650,1777812638000,-300.0,0.00013695,2]
[421518661,1777812638000,-160.0,0.00013825,2]
[421518673,1777812641000,-2333.18114726,0.00014517,2]
[421518708,1777812643000,-9308.68351841,0.00014517,2]
[421518709,1777812643000,-2119.25919702,0.00014517,2]
[421518712,1777812643000,-3166.47645286,0.00014517,2]
[421518713,1777812643000,-1275.38190145,0.00014517,2]
[421518711,1777812643000,-937.69762006,0.00014517,2]
[421518724,1777812646000,-14914.02128927,0.00014517,2]
[421518722,1777812646000,-38480.73428789,0.00014517,2]
[421518723,1777812646000,-7842.24019137,0.00014517,2]
[421518746,1777813370000,650.57,0.0002191,120]
[421518751,1777813538000,-325.8460697,0.0001165,2]
[421518750,1777813538000,-70.0,0.0001165,2]
[421518749,1777813538000,-115.0,0.0001165,2]
[421518748,1777813538000,-185.0,0.0001165,2]
[421518752,1777813618000,-277.72583855,0.00011418,2]
[421518753,1777813618000,-4722.27416145,0.00011418,2]
[421518757,1777813618000,-2216.22616145,0.00011433,2]
[421518754,1777813618000,-277.72583855,0.00011418,2]
[421518756,1777813618000,-277.72583855,0.00011426,2]
[421518755,1777813618000,-303.27416145,0.00011418,2]
[421518792,1777813827000,-2186.0,0.00011079,2]
[421519181,1777813840000,-1000.0,0.00013699,2]
[421519191,1777813840000,-160.68,0.00014008,2]
[421519177,1777813840000,-5471.1984583,0.00012733,2]
[421519172,1777813840000,-886.0,0.00012733,2]
[421519183,1777813840000,-173.737174,0.00013699,2]
[421519194,1777813840000,-396.77922797,0.00014015,2]
[421519192,1777813840000,-624.59710279,0.00014015,2]
[421519179,1777813840000,-327.71648949,0.00013426,2]
[421519187,1777813840000,-162.48,0.00013758,2]
[421519198,1777813840000,-3479.6162905,0.00014016,2]
[421519207,1777813840000,-152.0,0.00014129,7]
[421519175,1777813840000,-3172.76660099,0.00012733,2]
[421519185,1777813840000,-1000.0,0.00013699,2]
[421519170,1777813840000,-16770.0,0.00012733,2]
[421519167,1777813840000,-2805.75386206,0.00012733,2]
[421519165,1777813840000,-300.0,0.00012733,2]
[421519154,1777813840000,-276.0,0.00011303,2]
[421519150,1777813840000,-5000.0,0.00011191,2]
[421519152,1777813840000,-300.0,0.00011303,2]
[421519163,1777813840000,-420.0,0.00012417,2]
[421519204,1777813840000,-2118.71343328,0.00014016,2]
[421519162,1777813840000,-404.61417742,0.00012056,2]
[421519160,1777813840000,-15000.0,0.00011448,2]
[421519156,1777813840000,-466.0,0.00011446,5]
[421519146,1777813840000,-2814.0,0.00011079,2]
[421519158,1777813840000,-300.0,0.00011447,2]
[421519189,1777813840000,-159.67,0.00013938,2]
[421519211,1777813840000,-1118.07947636,0.00014175,2]
[421519148,1777813840000,-576.0,0.00011079,2]
[421519196,1777813840000,-164.70262398,0.00014015,2]
[421519206,1777813840000,-152.0,0.00014129,7]
[421519254,1777813840000,-500.0,0.00014516,3]
[421519259,1777813840000,-500.0,0.00014516,6]
[421519248,1777813840000,-500.0,0.00014304,2]
[421519258,1777813840000,-500.0,0.00014516,5]
[421519247,1777813840000,-500.0,0.00014304,2]
[421519256,1777813840000,-500.0,0.00014516,4]
[421519250,1777813840000,-100000.0,0.00014305,2]
[421519227,1777813840000,-500.0,0.00014304,2]
[421519236,1777813840000,-500.0,0.00014304,2]
[421519245,1777813840000,-500.0,0.00014304,2]
[421519231,1777813840000,-459.27178299,0.00014304,2]
[421519229,1777813840000,-500.0,0.00014304,2]
[421519252,1777813840000,-500.0,0.00014516,2]
[421519239,1777813840000,-500.0,0.00014304,2]
[421519217,1777813840000,-500.0,0.00014304,2]
[421519241,1777813840000,-590.43180311,0.00014304,2]
[421519215,1777813840000,-500.0,0.00014304,2]
[421519219,1777813840000,-427.65796353,0.00014304,2]
[421519213,1777813840000,-500.0,0.00014304,2]
[421519200,1777813840000,-1544.55864732,0.00014016,2]
[421519209,1777813840000,-163.3,0.00014133,2]
[421519233,1777813840000,-500.0,0.00014304,2]
[421519225,1777813840000,-500.0,0.00014304,2]
[421519223,1777813840000,-500.0,0.00014304,2]
[421519221,1777813840000,-500.0,0.00014304,2]
[421519243,1777813840000,-500.0,0.00014304,2]
[421519235,1777813840000,-500.0,0.00014304,2]
[421519299,1777813841000,-3378.03706425,0.00015399,2]
[421519274,1777813841000,-300.0,0.00014704,2]
[421519294,1777813841000,-213.324,0.00015365,2]
[421519289,1777813841000,-2150.738,0.00014957,2]
[421519272,1777813841000,-300.0,0.00014704,2]
[421519276,1777813841000,-300.0,0.00014704,2]
[421519287,1777813841000,-300.0,0.00014704,2]
[421519279,1777813841000,-300.0,0.00014704,2]
[421519286,1777813841000,-300.0,0.00014704,2]
[421519269,1777813841000,-300.0,0.00014704,2]
[421519281,1777813841000,-300.0,0.00014704,2]
[421519288,1777813841000,-3763.35268014,0.00014803,2]
[421519282,1777813841000,-300.0,0.00014704,2]
[421519284,1777813841000,-300.0,0.00014704,2]
[421519271,1777813841000,-300.0,0.00014704,2]
[421519265,1777813841000,-300.0,0.00014704,2]
[421519267,1777813841000,-300.0,0.00014704,2]
[421519261,1777813841000,-160.0,0.00014663,2]
[421519263,1777813841000,-2178.15512293,0.00014665,2]
[421519297,1777813841000,-375.71316475,0.00015399,2]
[421519285,1777813841000,-300.0,0.00014704,2]
[421519293,1777813841000,-151.055,0.00015365,2]
[421519278,1777813841000,-300.0,0.00014704,2]
[421519290,1777813841000,-600.0,0.00015011,2]
[421519295,1777813841000,-150.358,0.00015365,2]
[421519314,1777813841000,-380.36253887,0.00016,2]
[421519315,1777813841000,-5276.11361017,0.00016,2]